bitfinex/quotes_SOLUSD_20241001
["timestamp","ask_amount","ask_price","bid_price","bid_amount"]
[1727809356198,1.35182947,147.68,147.6,15.8872]
[1727809356405,6.7746,147.61,147.6,15.8872]
[1727809356617,1.35182947,147.66,147.6,15.8872]
[1727809358208,1.35182947,147.66,147.56,16.0831]
[1727809358209,6.7763,147.58,147.56,16.0831]
[1727809358406,6.7746,147.61,147.56,22.8596]
[1727809358614,6.7742,147.62,147.57,6.776]
[1727809359916,18.28262947,147.66,147.57,6.776]
[1727809359917,6.7746,147.61,147.57,6.776]
[1727809360222,6.7751,147.6,147.57,23.776884]
[1727809361108,6.7763,147.58,147.56,16.0831]
[1727809361606,16.9358,147.62,147.56,16.0831]
[1727809361607,6.7764,147.57,147.56,16.0831]
[1727809362209,1.35182947,147.61,147.52,16.407]
[1727809362408,6.7782,147.53,147.52,16.407]
[1727809362597,25.12871347,147.6,147.49,6.592]
[1727809362797,6.7784,147.53,147.49,13.3719]
[1727809363927,18.29132947,147.59,147.51,23.776884]
[1727809364133,6.7757,147.59,147.55,6.7773]
[1727809364325,6.7751,147.6,147.56,8.13188258]
[1727809364505,6.7751,147.6,147.56,1.35508258]
[1727809364707,1.35182947,147.64,147.56,1.35508258]
[1727809364708,6.7756,147.59,147.56,1.35508258]
[1727809365123,6.7746,147.61,147.56,22.4242]
[1727809366052,6.7746,147.61,147.57,6.7762]
[1727809366351,6.7746,147.61,147.56,32.5896]
[1727809366531,6.7751,147.6,147.56,39.3663]
[1727809367239,6.7751,147.6,147.56,32.5896]
[1727809367630,21.35182947,147.64,147.56,32.5896]
[1727809367857,6.7756,147.59,147.56,32.5896]
[1727809368228,6.7756,147.59,147.56,15.6478]
[1727809368750,1.35182947,147.62,147.56,15.6478]
[1727809368948,6.7751,147.6,147.56,22.4243]
[1727809369535,6.7755,147.59,147.56,15.6478]
[1727809370046,6.7761,147.58,147.56,15.6478]
[1727809371126,1.35182947,147.62,147.56,17.00293607]
[1727809371329,6.7751,147.6,147.56,22.4246]
[1727809371752,6.7759,147.58,147.56,15.6478]
[1727809371933,6.7761,147.58,147.56,15.6478]
[1727809372623,6.7764,147.57,147.56,15.6478]
[1727809375652,1.35182947,147.63,147.57,30.120784]
[1727809375823,18.28232947,147.67,147.58,16.9395]
[1727809377161,16.9321,147.65,147.58,16.9395]
[1727809377462,6.7756,147.59,147.57,6.3439]
[1727809377628,6.7743,147.62,147.58,6.7758]
[1727809377831,6.7746,147.61,147.57,30.0609]
[1727809378557,1.35182947,147.64,147.58,6.7759]
[1727809378558,6.7743,147.62,147.58,6.7759]
[1727809379059,6.7759,147.58,147.56,15.6478]
[1727809379356,6.7764,147.57,147.56,15.6478]
[1727809380352,1.35182947,147.6,147.56,15.6478]
[1727809380570,6.7761,147.58,147.56,15.6478]
[1727809381569,1.35182947,147.6,147.53,22.9525]
[1727809381777,1.35182947,147.6,147.52,16.6022]
[1727809381941,6.7787,147.52,147.51,2.0]
[1727809384078,50.555584,147.52,147.51,2.0]
[1727809384373,6.7787,147.52,147.51,2.0]
[1727809387150,1.35182947,147.54,147.51,2.0]
[1727809387459,6.7787,147.52,147.51,2.0]
[1727809387848,21.35182947,147.55,147.51,2.0]
[1727809388063,6.7765,147.57,147.52,23.4148]
[1727809388248,1.35182947,147.59,147.53,1.35537898]
[1727809388470,1.35182947,147.61,147.54,1.35530689]
[1727809388659,6.7746,147.61,147.56,6.7767]
[1727809388861,1.35182947,147.63,147.56,6.7768]
[1727809389356,6.7749,147.61,147.56,6.7768]
[1727809389674,6.775,147.61,147.57,1.35504839]
[1727809389859,16.931,147.66,147.56,6.7768]
[1727809390048,6.7751,147.6,147.56,6.7768]
[1727809391056,1.35182947,147.65,147.57,1.35500425]
[1727809391360,6.7747,147.61,147.57,23.7167]
[1727809392252,6.7747,147.61,147.56,6.7768]
[1727809392253,6.7746,147.61,147.56,6.7768]
[1727809392447,18.28452947,147.65,147.55,23.776884]
[1727809392644,6.7741,147.62,147.57,6.776]
[1727809393577,6.7742,147.62,147.58,6.7758]
[1727809394381,6.7746,147.61,147.57,23.776884]
[1727809395864,6.776,147.58,147.54,6.7777]
[1727809396050,1.35182947,147.62,147.5,6.4019]
[1727809396255,6.7765,147.57,147.53,1.35533329]
[1727809396457,6.7765,147.57,147.54,30.0]
[1727809396760,1.35182947,147.6,147.54,30.0]
[1727809396969,6.7773,147.55,147.54,30.0]
[1727809397155,16.9415,147.57,147.52,16.6362]
[1727809397485,6.7782,147.53,147.52,16.6362]
[1727809398154,1.35182947,147.56,147.52,16.6362]
[1727809398350,6.7767,147.57,147.53,1.35542306]
[1727809398576,6.7761,147.58,147.54,6.7775]
[1727809398877,6.7761,147.58,147.55,1.35524756]
[1727809399459,6.7761,147.58,147.53,23.7233]
[1727809399862,1.35182947,147.62,147.54,25.13213223]
[1727809400077,1.35182947,147.64,147.55,16.9426]
[1727809400676,18.28532947,147.64,147.54,30.554584]
[1727809400860,6.7764,147.58,147.55,1.35523366]
[1727809401069,6.7764,147.58,147.55,23.776884]
[1727809401879,6.7769,147.56,147.52,33.5822]
[1727809402058,6.7769,147.56,147.53,23.776884]
[1727809402259,33.8638,147.66,147.53,23.776884]
[1727809402456,6.7756,147.59,147.54,6.7774]
[1727809402654,6.7751,147.6,147.54,16.9437]
[1727809402857,6.7749,147.61,147.56,6.7766]
[1727809403276,6.7751,147.6,147.56,6.7766]
[1727809403967,16.9348,147.63,147.56,6.7766]
[1727809404165,6.7747,147.61,147.57,6.7763]
[1727809404376,1.35182947,147.65,147.59,23.776884]
[1727809404580,6.7728,147.65,147.61,6.7745]
[1727809404884,6.7728,147.65,147.62,1.35451378]
[1727809405786,40.7080686,147.71,147.62,1.35451378]
[1727809405787,1.35182947,147.7,147.63,16.9335]
[1727809405985,1.35182947,147.7,147.65,23.776884]
[1727809405986,6.7705,147.7,147.65,23.776884]
[1727809406197,6.7705,147.7,147.66,1.35409395]
[1727809406372,6.7699,147.72,147.67,6.7717]
[1727809406570,6.77,147.71,147.68,1.35404534]
[1727809406887,6.7709,147.69,147.65,40.707784]
[1727809407066,6.7704,147.71,147.66,8.12626844]
[1727809407386,1.35182947,147.74,147.66,6.7721]
[1727809407574,6.7706,147.7,147.65,47.480384]
[1727809408086,6.771,147.69,147.65,40.707784]
[1727809408585,6.7705,147.7,147.65,47.480384]
[1727809409165,18.27252947,147.75,147.68,23.776884]
[1727809409370,6.7687,147.74,147.7,23.776884]
[1727809409571,6.7687,147.74,147.71,1.35367315]
[1727809409876,6.7682,147.75,147.71,1.35367315]
[1727809410271,0.8496,147.77,147.72,30.546084]
[1727809410466,7.617,147.77,147.73,1.35341632]
[1727809410971,0.8496,147.77,147.73,18.27551632]
[1727809411291,7.6169,147.77,147.73,18.27551632]
[1727809411481,7.6169,147.77,147.73,16.9221]
[1727809411784,6.7678,147.76,147.72,30.546284]
[1727809411969,6.7678,147.76,147.72,23.776884]
[1727809413169,6.7678,147.76,147.71,6.7699]
[1727809413170,7.6169,147.77,147.73,6.769]
[1727809413374,0.8496,147.77,147.75,16.3271]
[1727809413689,0.8496,147.77,147.76,1.35318219]
[1727809414094,40.7080686,147.83,147.76,43.776884]
[1727809414305,6.7636,147.85,147.78,20.0]
[1727809414586,6.7636,147.85,147.81,23.776884]
[1727809415179,6.7641,147.84,147.79,23.682]
[1727809415388,6.765,147.82,147.79,23.776884]
[1727809415891,6.765,147.82,147.78,23.776884]
[1727809416602,6.765,147.82,147.77,30.543984]
[1727809416890,6.7654,147.81,147.77,30.543984]
[1727809417472,6.765,147.82,147.77,30.543984]
[1727809417886,6.7655,147.81,147.77,30.543984]
[1727809418088,6.7664,147.79,147.76,23.776884]
[1727809418395,6.7668,147.78,147.74,6.3987]
[1727809418777,6.7664,147.79,147.74,13.1672]
[1727809419684,1.35182947,147.82,147.74,6.3987]
[1727809419882,6.7664,147.79,147.74,13.1673]
[1727809420278,1.35182947,147.82,147.74,6.3987]
[1727809420600,6.7676,147.77,147.74,6.3987]
[1727809420994,6.7677,147.76,147.71,6.7699]
[1727809421299,6.7677,147.76,147.71,21.8075]
[1727809421676,1.35182947,147.8,147.71,15.0376]
[1727809421880,6.7687,147.74,147.71,15.0376]
[1727809422200,6.7682,147.75,147.71,15.0376]
[1727809422497,33.823,147.83,147.73,6.7689]
[1727809422498,6.7674,147.77,147.73,6.7689]
[1727809422695,6.7674,147.77,147.72,6.7694]
[1727809422873,6.7674,147.77,147.73,23.776884]
[1727809424592,6.7674,147.77,147.72,6.7694]
[1727809426406,18.26472947,147.82,147.73,18.27558472]
[1727809426704,1.35182947,147.84,147.75,16.9199]
[1727809427027,6.7677,147.76,147.72,40.700084]
[1727809427305,6.768,147.76,147.71,21.8072]
[1727809427479,1.35182947,147.79,147.71,15.0376]
[1727809427687,6.7686,147.74,147.71,15.0376]
[1727809428004,6.7689,147.74,147.71,15.0376]
[1727809428391,1.35182947,147.77,147.71,15.0376]
[1727809428709,6.7683,147.75,147.71,15.0376]
[1727809429011,16.9175,147.78,147.71,21.8075]
[1727809429012,6.7678,147.76,147.71,21.8075]
[1727809429601,6.7678,147.76,147.72,6.7694]
[1727809429805,18.26582947,147.81,147.73,6.7689]
[1727809429806,6.7675,147.77,147.73,6.7689]
[1727809430302,18.26582947,147.81,147.71,31.9618]
[1727809430508,6.7667,147.79,147.75,6.7681]
[1727809430897,6.7668,147.78,147.73,16.922]
[1727809431214,6.7668,147.78,147.73,23.691]
[1727809432620,6.7673,147.77,147.73,23.691]
[1727809433112,6.769,147.74,147.71,15.0376]
[1727809433315,6.7691,147.73,147.71,15.0376]
[1727809434095,1.35182947,147.76,147.71,15.0376]
[1727809434425,6.7688,147.74,147.71,15.0376]
[1727809434587,6.7683,147.75,147.71,15.0376]
[1727809434917,6.7683,147.75,147.71,21.8075]
[1727809435512,6.7687,147.74,147.71,15.0376]
[1727809437211,16.9198,147.76,147.68,16.5728]
[1727809437410,6.7696,147.72,147.68,23.3441]
[1727809437612,1.35182947,147.75,147.68,16.5728]
[1727809437794,16.9221,147.74,147.68,16.5728]
[1727809437994,6.7699,147.72,147.68,16.5728]
[1727809438397,16.9221,147.74,147.68,16.5728]
[1727809438595,6.7703,147.71,147.68,16.5728]
[1727809439011,6.7706,147.7,147.68,16.5728]
[1727809441318,16.9247,147.72,147.64,15.5267]
[1727809441529,1.35182947,147.71,147.64,15.5267]
[1727809441717,6.772,147.67,147.64,15.5267]
[1727809441894,6.7715,147.68,147.64,15.5267]
[1727809442101,6.7715,147.68,147.64,22.2999]
[1727809442295,6.7721,147.67,147.64,15.5267]
[1727809442525,6.7723,147.66,147.64,15.5267]
[1727809442711,16.9264,147.7,147.64,15.5267]
[1727809442712,6.7727,147.65,147.64,15.5267]
[1727809443418,6.7717,147.68,147.64,15.5267]
[1727809443625,6.7719,147.67,147.64,15.5267]
[1727809445031,1.35182947,147.72,147.65,1.35429419]
[1727809445215,6.7701,147.71,147.67,6.7717]
[1727809445421,6.7704,147.7,147.68,1.35400867]
[1727809445615,6.7704,147.7,147.66,6.7719]
[1727809445808,6.7714,147.68,147.65,16.9316]
[1727809446009,6.7714,147.68,147.64,22.2998]
[1727809446608,6.7718,147.67,147.64,15.5267]
[1727809446833,1.35182947,147.71,147.64,15.5267]
[1727809447124,6.7713,147.69,147.64,15.5267]
[1727809447429,6.7714,147.68,147.64,22.2995]
[1727809447732,1.35182947,147.72,147.64,22.2995]
[1727809447733,1.35182947,147.72,147.64,15.5267]
[1727809447927,6.7723,147.66,147.64,15.5267]
[1727809448928,18.27992947,147.69,147.64,15.5267]
[1727809449239,33.848,147.72,147.64,15.5267]
[1727809449240,6.7714,147.68,147.64,22.2998]
[1727809449540,6.7705,147.7,147.66,6.7723]
[1727809450313,6.7696,147.72,147.66,20.0]
[1727809450539,6.7696,147.72,147.67,6.7717]
[1727809450721,1.35182947,147.74,147.66,20.0]
[1727809451049,6.7691,147.73,147.68,6.771]
[1727809451218,6.7691,147.73,147.67,16.9292]
[1727809451219,6.7696,147.72,147.67,16.9292]
[1727809451405,6.7696,147.72,147.67,23.7009]
[1727809452025,1.35182947,147.71,147.64,15.5267]
[1727809452210,6.7723,147.66,147.64,15.5267]
[1727809452413,16.9265,147.7,147.64,15.5267]
[1727809452731,1.35182947,147.69,147.6,15.0378]
[1727809453521,6.7729,147.65,147.6,15.0378]
[1727809453726,6.7729,147.65,147.61,6.7745]
[1727809454038,53.8478,147.72,147.63,6.7736]
[1727809454039,6.7718,147.67,147.63,6.7736]
[1727809454244,1.35182947,147.7,147.62,16.9347]
[1727809454423,1.35182947,147.75,147.61,23.776884]
[1727809454618,23.776884,147.74,147.64,16.9322]
[1727809454948,6.7729,147.65,147.61,47.487484]
[1727809455119,23.776884,147.72,147.61,20.0]
[1727809455447,6.7728,147.65,147.6,15.0378]
[1727809455837,1.35182947,147.68,147.6,15.0378]
[1727809456040,6.7733,147.64,147.6,21.8127]
[1727809456334,6.7746,147.61,147.6,15.0378]
[1727809456549,6.7735,147.64,147.6,21.8128]
[1727809456752,18.28112947,147.68,147.6,15.0378]
[1727809457259,16.9311,147.66,147.6,15.0378]
[1727809457556,6.776,147.58,147.56,16.397]
[1727809457765,33.8637,147.66,147.56,16.397]
[1727809457766,6.7764,147.57,147.56,16.397]
[1727809457947,23.776884,147.62,147.54,7.04645537]
[1727809458253,6.7769,147.56,147.54,7.04645537]
[1727809458457,6.7773,147.55,147.54,7.04645537]
[1727809458674,1.35182947,147.59,147.52,16.397]
[1727809458675,6.7779,147.54,147.52,16.397]
[1727809458951,6.7779,147.54,147.51,2.0]
[1727809459528,6.7774,147.55,147.51,2.0]
[1727809459768,6.7784,147.53,147.51,2.0]
[1727809460564,6.7787,147.52,147.51,2.0]
[1727809462245,6.7783,147.53,147.51,2.0]
[1727809462637,1.35182947,147.55,147.51,2.0]
[1727809462836,6.7787,147.52,147.51,2.0]
[1727809470073,32.489284,147.52,147.41,20.08117946]
[1727809470240,6.7824,147.44,147.41,20.08117946]
[1727809470652,1.35182947,147.48,147.41,20.08117946]
[1727809470969,6.7829,147.43,147.41,20.08117946]
[1727809471349,6.7833,147.42,147.41,3.53777946]
[1727809472477,6.7838,147.41,147.4,0.8496845]
[1727809474968,30.560684,147.41,147.4,0.8496845]
[1727809475375,6.7838,147.41,147.4,0.8496845]
[1727809475882,30.560684,147.41,147.4,0.8496845]
[1727809476571,6.7838,147.41,147.4,0.8496845]
[1727809478164,1.35182947,147.44,147.4,0.8496845]
[1727809478475,16.9553,147.45,147.4,0.8496845]
[1727809478476,6.7829,147.43,147.4,0.8496845]
[1727809478985,6.7825,147.44,147.4,0.8496845]
[1727809479869,18.29982947,147.51,147.41,6.2445]
[1727809480080,18.29982947,147.51,147.42,23.776884]
[1727809480081,6.7805,147.49,147.42,23.776884]
[1727809480281,6.7805,147.49,147.44,6.7823]
[1727809480576,6.781,147.47,147.43,6.7828]
[1727809480769,1.35182947,147.51,147.43,6.7828]
[1727809480971,6.7805,147.49,147.45,6.7818]
[1727809481285,6.7807,147.48,147.43,6.7825]
[1727809481581,6.7802,147.49,147.45,6.7819]
[1727809481798,1.35182947,147.51,147.46,16.069]
[1727809481969,6.7801,147.49,147.46,16.069]
[1727809482170,1.35182947,147.51,147.47,6.781]
[1727809482476,6.7784,147.53,147.48,8.13627743]
[1727809482684,6.7792,147.51,147.47,23.7331]
[1727809482882,6.7792,147.51,147.47,16.9522]
[1727809483066,6.7799,147.5,147.46,16.069]
[1727809483258,6.7792,147.51,147.46,22.8503]
[1727809483476,6.7796,147.5,147.46,16.069]
[1727809483860,6.7792,147.51,147.46,16.069]
[1727809484061,6.7788,147.52,147.47,8.13685818]
[1727809484474,8.13002947,147.54,147.49,6.1635]
[1727809484781,8.13002947,147.54,147.5,1.355683]
[1727809484782,6.7782,147.54,147.5,1.355683]
[1727809485156,1.35182947,147.57,147.51,1.35569107]
[1727809485380,6.777,147.56,147.52,6.7787]
[1727809485581,16.937,147.61,147.53,1.35538616]
[1727809485582,6.7764,147.57,147.53,1.35538616]
[1727809485889,1.35182947,147.6,147.54,16.82005541]
[1727809486065,6.7755,147.59,147.55,8.13235826]
[1727809486262,6.7755,147.59,147.54,22.2424]
[1727809486482,6.7765,147.57,147.54,15.4647]
[1727809486685,6.7773,147.55,147.54,15.4647]
[1727809487186,1.35182947,147.57,147.49,29.8931]
[1727809487187,6.7787,147.53,147.5,15.095]
[1727809487364,1.35182947,147.57,147.5,15.095]
[1727809487567,6.7788,147.52,147.5,15.095]
[1727809487761,6.7784,147.53,147.5,15.095]
[1727809488476,6.7779,147.54,147.5,15.095]
[1727809489064,6.7788,147.52,147.5,15.095]
[1727809489266,18.29322947,147.57,147.5,15.095]
[1727809489483,6.7783,147.53,147.5,15.095]
[1727809489681,1.35182947,147.6,147.57,6.7761]
[1727809489858,8.2247056,147.66,147.57,1.35512982]
[1727809489859,8.12652947,147.61,147.57,1.35512982]
[1727809490062,7.04681653,147.66,147.51,20.0]
[1727809490063,1.35182947,147.6,147.51,20.0]
[1727809490286,6.7769,147.56,147.52,6.7787]
[1727809490586,6.7764,147.57,147.52,6.7787]
[1727809490969,6.7772,147.56,147.51,20.0]
[1727809491283,6.7765,147.57,147.53,6.7781]
[1727809491474,6.776,147.58,147.52,16.9462]
[1727809491666,8.12692947,147.6,147.55,6.7773]
[1727809491866,6.776,147.58,147.54,23.7216]
[1727809492062,6.776,147.58,147.54,16.9439]
[1727809492281,6.7764,147.57,147.54,16.9439]
[1727809492686,6.7764,147.57,147.51,20.0]
[1727809492862,1.35182947,147.56,147.5,15.095]
[1727809493063,6.7787,147.52,147.5,15.095]
[1727809493261,21.35182947,147.59,147.5,21.8744]
[1727809493262,1.35182947,147.55,147.5,21.8744]
[1727809493598,6.7783,147.53,147.5,15.095]
[1727809494086,6.7787,147.52,147.5,15.095]
[1727809494267,1.35182947,147.56,147.5,15.095]
[1727809494469,6.7783,147.53,147.5,15.095]
[1727809495070,1.35182947,147.56,147.5,15.095]
[1727809495388,6.7787,147.52,147.5,15.095]
[1727809495788,6.7783,147.53,147.5,15.095]
[1727809496580,6.7782,147.53,147.5,15.095]
[1727809496890,6.7788,147.52,147.5,15.095]
[1727809499097,1.35182947,147.56,147.5,15.095]
[1727809499270,1.35182947,147.63,147.55,20.0]
[1727809499469,1.35182947,147.66,147.56,1.35508855]
[1727809499772,1.35182947,147.66,147.53,21.5662]
[1727809499773,16.9332,147.64,147.53,21.5662]
[1727809499976,6.775,147.61,147.55,6.7773]
[1727809500178,6.775,147.61,147.56,1.35506054]
[1727809500490,6.7755,147.59,147.54,20.0]
[1727809500874,6.776,147.58,147.53,45.2888]
[1727809501176,6.7764,147.58,147.53,38.511]
[1727809501689,6.7764,147.58,147.54,1.35524329]
[1727809502399,6.7775,147.55,147.53,21.5662]
[1727809502574,16.9388,147.59,147.53,21.5662]
[1727809502775,6.7769,147.56,147.53,21.5662]
[1727809503394,6.7778,147.54,147.53,21.5662]
[1727809503600,6.7774,147.55,147.53,21.5662]
[1727809504094,6.7778,147.54,147.53,15.1022]
[1727809504873,6.7768,147.57,147.53,15.1022]
[1727809505072,1.35182947,147.56,147.53,15.1022]
[1727809505282,6.7778,147.54,147.53,15.1022]
[1727809506595,6.7783,147.53,147.5,16.4847]
[1727809507595,6.7788,147.52,147.5,16.4847]
[1727809507782,6.7777,147.55,147.5,16.4847]
[1727809508090,6.7773,147.55,147.5,33.4332]
[1727809508508,1.35182947,147.6,147.51,1.35545889]
[1727809508676,6.7764,147.58,147.52,23.7243]
[1727809508879,6.7764,147.58,147.53,1.35538498]
[1727809509179,6.7765,147.57,147.53,1.35538498]
[1727809509767,8.12702947,147.6,147.55,6.7769]
[1727809509972,40.3245,147.67,147.54,16.9439]
[1727809509973,1.35182947,147.59,147.54,16.9439]
[1727809510172,6.7768,147.57,147.52,6.7786]
[1727809510688,6.7768,147.57,147.53,6.7782]
[1727809510889,6.7768,147.57,147.53,8.13356376]
[1727809511069,6.7755,147.59,147.54,8.13303244]
[1727809511271,16.9323,147.65,147.54,20.0]
[1727809511493,6.7737,147.63,147.56,20.0]
[1727809511808,6.7737,147.63,147.58,6.7755]
[1727809512490,1.35182947,147.66,147.58,6.7755]
[1727809512695,1.35182947,147.66,147.61,6.7744]
[1727809512998,7.24105855,147.72,147.61,15.214]
[1727809512999,1.35182947,147.65,147.61,15.214]
[1727809513180,33.8527,147.7,147.57,15.214]
[1727809513181,1.35182947,147.69,147.57,15.214]
[1727809513699,6.0984,147.64,147.53,15.214]
[1727809513993,6.7774,147.55,147.53,15.214]
[1727809514196,6.7778,147.54,147.53,15.214]
[1727809514493,1.35182947,147.58,147.53,15.214]
[1727809514702,6.7764,147.57,147.53,15.214]
[1727809514871,1.35182947,147.56,147.53,15.214]
[1727809515066,6.7778,147.54,147.53,15.214]
[1727809515579,1.35182947,147.58,147.49,18.66737946]
[1727809515786,6.7796,147.51,147.49,18.66737946]
[1727809516010,1.35182947,147.58,147.49,18.66737946]
[1727809516011,6.7796,147.5,147.49,15.1296]
[1727809516496,6.7805,147.48,147.45,19.60797946]
[1727809517007,16.9482,147.51,147.45,19.60797946]
[1727809517204,6.7806,147.48,147.45,19.60797946]
[1727809517380,6.7806,147.48,147.45,16.0702]
[1727809517580,6.7806,147.48,147.45,19.60797946]
[1727809517779,6.7806,147.48,147.45,16.0702]
[1727809517994,6.7801,147.49,147.45,19.60797946]
[1727809518199,6.779,147.52,147.47,6.781]
[1727809518393,1.35182947,147.51,147.46,3.53777946]
[1727809518594,23.776884,147.55,147.46,3.53777946]
[1727809518807,1.35182947,147.54,147.46,3.53777946]
[1727809518999,1.35182947,147.54,147.46,20.49067946]
[1727809519201,6.7787,147.52,147.48,6.7804]
[1727809519405,6.7787,147.52,147.46,27.27167946]
[1727809519906,1.35182947,147.54,147.46,20.49067946]
[1727809520208,6.7787,147.52,147.48,16.9506]
[1727809520908,6.7797,147.5,147.46,23.53777946]
[1727809521105,6.7792,147.51,147.46,23.53777946]
[1727809521293,6.7792,147.51,147.47,1.35594984]
[1727809521604,6.7787,147.52,147.47,8.13694984]
[1727809521807,6.7787,147.52,147.47,6.781]
[1727809522709,6.7787,147.52,147.48,1.35582037]
[1727809523295,6.7793,147.51,147.47,6.781]
[1727809524309,18.29472947,147.56,147.47,6.781]
[1727809524517,6.7788,147.52,147.47,6.781]
[1727809524812,6.7801,147.5,147.46,3.53777946]
[1727809525198,6.7792,147.51,147.47,6.7809]
[1727809525394,6.7792,147.51,147.47,10.31867946]
[1727809525915,18.29352947,147.57,147.47,20.48987946]
[1727809526204,6.7783,147.53,147.49,6.78]
[1727809526407,1.35182947,147.57,147.49,16.9495]
[1727809526708,1.35182947,147.57,147.51,13.4044]
[1727809526915,6.7773,147.55,147.52,1.3555897]
[1727809527095,16.9384,147.6,147.51,6.6256]
[1727809527096,6.7779,147.54,147.51,6.6256]
[1727809527296,1.35182947,147.59,147.52,6.7784]
[1727809527512,6.7769,147.56,147.52,6.7784]
[1727809527812,6.7769,147.56,147.51,30.3519]
[1727809528189,33.8712,147.62,147.52,15.0604]
[1727809528190,1.35182947,147.55,147.52,15.0604]
[1727809528389,6.7782,147.53,147.52,15.0604]
[1727809530510,7.03557715,147.61,147.52,15.0604]
[1727809530730,42.5765,147.65,147.53,1.35540615]
[1727809530731,1.35182947,147.6,147.53,1.35540615]
[1727809531017,6.7747,147.61,147.57,6.7761]
[1727809531205,1.35182947,147.64,147.58,1.35493529]
[1727809531405,1.35182947,147.65,147.59,16.0491]
[1727809531894,6.7749,147.61,147.59,16.0491]
[1727809535220,1.35182947,147.65,147.59,16.0491]
[1727809535221,6.775,147.6,147.59,16.0491]
[1727809535401,6.7747,147.61,147.59,16.0491]
[1727809535723,6.7733,147.64,147.6,6.036]
[1727809536023,6.7733,147.64,147.6,7.39073388]
[1727809536213,6.7733,147.64,147.6,6.036]
[1727809536409,6.7737,147.63,147.6,6.036]
[1727809536612,6.7745,147.62,147.6,6.036]
[1727809537319,6.775,147.6,147.59,16.0491]
[1727809537614,1.35182947,147.65,147.59,16.0491]
[1727809537615,6.7741,147.62,147.59,16.0491]
[1727809540918,6.7735,147.64,147.6,8.12961068]
[1727809541115,1.35182947,147.68,147.61,16.936]
[1727809541297,8.7124,147.74,147.62,1.35438362]
[1727809541298,18.27632947,147.72,147.62,1.35438362]
[1727809541504,18.27632947,147.72,147.65,6.7727]
[1727809541848,18.27632947,147.72,147.66,15.0743]
[1727809542125,6.7718,147.67,147.66,15.0743]
[1727809542319,16.9266,147.7,147.56,57.11428794]
[1727809542320,6.7731,147.65,147.62,16.2201]
[1727809543007,6.7733,147.64,147.62,16.2201]
[1727809543396,1.35182947,147.67,147.62,16.2201]
[1727809543604,6.7733,147.64,147.62,16.2201]
[1727809543805,1.35182947,147.67,147.62,16.2201]
[1727809544012,6.7722,147.67,147.63,1.35444508]
[1727809544517,6.7713,147.69,147.64,6.7731]
[1727809544715,1.35182947,147.69,147.65,1.3543397]
[1727809544921,6.7718,147.67,147.63,6.7735]
[1727809545125,13.5055792,147.75,147.62,16.2201]
[1727809545313,6.7709,147.7,147.65,23.7041]
[1727809545626,6.771,147.69,147.65,16.9318]
[1727809546207,6.771,147.69,147.65,23.7044]
[1727809546522,6.771,147.69,147.65,16.9318]
[1727809547530,6.771,147.69,147.65,23.7044]
[1727809548206,6.7716,147.68,147.63,6.7736]
[1727809548412,6.7722,147.67,147.62,33.1548]
[1727809548609,16.9256,147.71,147.62,33.1548]
[1727809548610,6.7714,147.68,147.63,6.7732]
[1727809549026,1.35182947,147.7,147.62,33.1548]
[1727809549216,6.7724,147.66,147.62,33.1548]
[1727809549411,1.35182947,147.7,147.62,16.2201]
[1727809549615,6.7736,147.63,147.62,16.2201]
[1727809550438,16.9303,147.67,147.58,15.9318]
[1727809550736,6.7738,147.63,147.58,15.9318]
[1727809550904,6.7741,147.62,147.58,32.8714]
[1727809551110,6.7747,147.61,147.58,32.8714]
[1727809551638,6.7747,147.61,147.58,15.9318]
[1727809552228,6.7742,147.62,147.58,22.7077]